Cogmind - Beta 15 @@@ ROGUE MODE // 2025.09.07 @ 22:00:10 Player: fartblaster Result: Destroyed by Y-45 Defender with Beam Rifle Performance ------------- Evolutions (1) 500 Regions Visited (3) 600 Robots Destroyed (13) 65 Value Destroyed (274) 274 Prototype IDs (0) 0 Alien Tech Used (0) 0 Bonus (0) 0 TOTAL SCORE: 1439 Bonus ------- None Cogmind --------- Core Integrity 0/400 Matter 189/300 Energy 100/100 System Corruption 0% Temperature Cool (9) Movement Core (50) Location -9/Materials Parts ------- > --- POWER (1) -------- (None) > --- PROPULSION (3) --- (None) > --- UTILITY (3) ------ Targeting Computer > --- WEAPON (2) ------- Mace > --- INVENTORY (5) ---- Light Ion Engine Light Treads Light Treads Medium Matter Pod (0) Peak State ------------ > --- POWER ------------ Ion Engine > --- PROPULSION ------- Aluminum Leg Aluminum Leg > --- UTILITY ---------- Small Storage Unit Targeting Computer > --- WEAPON ----------- Beam Cannon Assault Rifle > --- INVENTORY -------- (None) [Rating: 7] Favorites ----------- Power Ion Engine Engine Ion Engine Propulsion Aluminum Leg Treads Light Treads Leg Aluminum Leg Utility Small Storage Unit Storage Small Storage Unit Processor Targeting Computer Weapon Assault Rifle Energy Gun EM Pulse Gun Energy Cannon Beam Cannon Ballistic Gun Assault Rifle Impact Weapon Mace Build | -11 -10 -10 -9 ------- Run | Yrd Mat Min Mat Slots Evolved 2 | . . . 2 Power . | . . . . Propulsion 1 | . . . 1 Utility 1 | . . . 1 Weapon . | . . . . Parts Attached 14 | 5 5 1 3 Power 2 | 1 1 . . Engine 2 | 1 1 . . Core . | . . . . Reactor . | . . . . Propulsion 6 | 2 2 1 1 Treads 2 | . 2 . . Leg 4 | 2 . 1 1 Wheel . | . . . . Hover . | . . . . Flight . | . . . . Utility 2 | 1 1 . . Device . | . . . . Storage 1 | 1 . . . Processor 1 | . 1 . . Hackware . | . . . . Protection . | . . . . Artifact . | . . . . Weapon 4 | 1 1 . 2 Energy Gun 1 | . . . 1 Energy Cannon 1 | . 1 . . Ballistic Gun 1 | 1 . . . Ballistic Cannon . | . . . . Launcher . | . . . . Special Weapon . | . . . . Impact Weapon 1 | . . . 1 Slashing Weapon . | . . . . Piercing Weapon . | . . . . Special Melee Weapon . | . . . . Unidentified Prototypes . | . . . . Parts Lost 8 | . . 2 6 Power 1 | . . . 1 Propulsion 3 | . . . 3 Utility 1 | . . . 1 Weapon 3 | . . 2 1 Highest Loss Streak 6 | . . 1 6 To Critical Strikes . | . . . . Average Backups 1 | . . 3 4 Power . | . . 1 1 Propulsion . | . . 1 2 Utility . | . . 1 1 Weapon . | . . . . Tool/Special . | . . . . Unused Backups . | . . . . Power . | . . . . Propulsion . | . . . . Utility . | . . . . Weapon . | . . . . Tool/Special . | . . . . Average Slot Usage (%) 81 | . 89 79 52 Engine 12 | . 14 14 6 Treads 6 | . 7 8 . Leg 19 | . 19 19 18 Storage 13 | . 14 14 10 Processor 9 | . 7 14 11 Energy Cannon 8 | . 11 6 . Ballistic Gun 8 | . 14 2 . Peak Build Rating 7 | 5 7 7 7 Average Rating 5 | 4 6 5 4 On Entrance 4 | . 5 7 5 Naked Turns . | . . . . Heaviest Build 15 | 12 15 13 12 Greatest Support 40 | 20 40 40 30 Greatest Overweight (x) 2 | 1 1 . 2 Average Overweight (x) . | . . . . Largest Inventory Capacity 8 | 8 8 8 8 Average Capacity 7 | 6 8 8 7 Most Carried 5 | . 3 4 5 Average Carried 1 | . . 3 4 Final Capacity 8 | 8 8 8 5 Final Carried 4 | . 3 4 4 Class Distribution -------------------- 100% | Mutant Dominant Class ---------------- Mutant | -10/Materials Mutant | -10/Mines Mutant | -9/Materials Resources | -11 -10 -10 -9 ----------- Run | Yrd Mat Min Mat Matter Collected 310 | 234 50 26 . Remotely . | . . . . Salvage Created 362 | . 200 73 89 Parts 21 | . 11 3 7 Haulers Intercepted 1 | . 1 . . Recyclers Shooed . | . . . . Parts Field Recycled . | . . . . Retrieved Matter . | . . . . Parts Self-Destructed . | . . . . Prevented . | . . . . Kills | -11 -10 -10 -9 ------- Run | Yrd Mat Min Mat Combat Hostiles Destroyed 11 | . 5 4 2 Melee 1 | . . . 1 Guns 5 | . 2 2 1 Cannons 5 | . 3 2 . Classes Destroyed 4 | . 4 . . Hauler 1 | . 1 . . Watcher 1 | . 1 . . Swarmer 6 | . 3 3 . Grunt 5 | . 2 1 2 Best Kill Streak 4 | . 4 3 1 Combat Bots Only 3 | . 3 3 1 Max Kills in Single Turn 2 | . 2 1 1 Gunslinging . | . . . . Exploded . | . . . . Melee 1 | . . . 1 Uniques/NPCs Destroyed . | . . . . Combat | -11 -10 -10 -9 -------- Run | Yrd Mat Min Mat Hostile Shots Fired 199 | . 46 66 87 Missed 44 | . 12 15 17 Hits 155 | . 34 51 70 Projectile 155 | . 34 51 70 Critical Strikes 2 | . . 1 1 Damage Taken 1803 | . 290 618 895 Core 645 | . 60 176 409 Absorbed by Shields . | . . . . Core Remaining (%) 52 | 100 . 5 . Volleys Fired 41 | . 19 14 8 Largest 2 | . 2 2 1 Hottest 80 | . 80 80 40 Shots Fired 68 | . 38 22 8 Gun 35 | . 19 8 8 Cannon 33 | . 19 14 . Launcher . | . . . . Special . | . . . . Kinetic 27 | . 19 8 . Thermal 33 | . 19 14 . Explosive . | . . . . Electromagnetic 8 | . . . 8 Robot Hit Streak 7 | . 4 7 4 Robot Miss Streak 5 | . 5 1 1 Penetration Max . | . . . . Secondary Targets . | . . . . Shots Hit Robots 42 | . 17 15 10 Core Hits 18 | . 7 6 5 Critical Kills . | . . . . Critical Parts Destroyed . | . . . . Critical Strikes . | . . . . Melee Attacks 8 | . . . 8 Impact 8 | . . . 8 Slashing . | . . . . Piercing . | . . . . Sneak Attacks . | . . . . Combat Hostiles . | . . . . Follow-up Attacks . | . . . . Damage Inflicted 777 | . 301 233 243 Guns 297 | . 142 76 79 Cannons 316 | . 159 157 . Explosions . | . . . . Melee 164 | . . . 164 Ramming . | . . . . Kinetic 218 | . 142 76 . Thermal 316 | . 159 157 . Explosive . | . . . . Electromagnetic 79 | . . . 79 Impact 164 | . . . 164 Slashing . | . . . . Piercing . | . . . . Highest Corruption . | . . . . Average Corruption . | . . . . Corruption Purged . | . . . . Corruption Blocked . | . . . . Overload Shots . | . . . . Overflow Damage 15 | . 13 . 2 Projectiles 13 | . 13 . . Explosions . | . . . . Melee 2 | . . . 2 Knockbacks 1 | . . . 1 Impact 1 | . . . 1 Kinetic . | . . . . Secondary . | . . . . Self-Inflicted Damage . | . . . . Shots . | . . . . Rammed . | . . . . Targets Rammed . | . . . . Kicked . | . . . . Crushed . | . . . . Highest Temperature 329 | . 114 329 27 Average Temperature 88 | . 42 154 12 Received Heat Transfer 720 | . 39 276 405 Effects 2 | . . 2 . Interference 2 | . . 2 . Siege Activations . | . . . . Martial Activations . | . . . . Shielding Activations . | . . . . Robots Disrupted . | . . . . Combat Hostiles . | . . . . Robots Corrupted . | . . . . Combat Hostiles . | . . . . Parts Fried 1 | . . . 1 Impact Corruptions 1 | . . . 1 Robots Melted . | . . . . Combat Hostiles . | . . . . Parts Melted 2 | . 1 1 . Heat Transferred 666 | . 333 333 . Parts Sabotaged . | . . . . Parts Stolen . | . . . . Parts Stripped . | . . . . Power Chain Reactions . | . . . . Alert | -11 -10 -10 -9 ------- Run | Yrd Mat Min Mat Maximum Alert Level . | . . . . Low Security (%) 100 | 100 100 100 100 Level 1 . | . . . . Level 2 . | . . . . Level 3 . | . . . . Level 4 . | . . . . Level 5 . | . . . . High Security . | . . . . Max Security . | . . . . Peak Influence 92 | . 66 92 30 Initial 22 | . . 22 . Average 18 | . 14 42 2 Influence Increases 290 | . 150 90 50 Destroy 0b10 Robot/C 220 | . 100 80 40 Destroy 0b10 Robot/NC 10 | . 10 . . Destroy Leader 44 | . 24 10 10 Destroy Structure 1 | . 1 . . Lose Combat Pursuer 15 | . 15 . . Influence Decreases 290 | . 92 146 52 Entered New Map 38 | . . 36 2 Time Decay 202 | . 92 90 20 Lost Part 50 | . . 20 30 Squads Dispatched 1 | . . . 1 Investigation . | . . . . Extermination . | . . . . Reinforcement 1 | . . . 1 Assault . | . . . . Garrison . | . . . . Intercept . | . . . . Searches Triggered . | . . . . Construction Impeded . | . . . . Haulers Reinforced . | . . . . Active Scanning Responses . | . . . . Cargo Convoy Interrupts . | . . . . Stealth | -11 -10 -10 -9 --------- Run | Yrd Mat Min Mat Distress Signals 1 | . 1 . . Communications Jammed . | . . . . Distress Signals . | . . . . Times Spotted 26 | . 16 5 5 Peak Tracking Total 6 | . 6 4 5 Tactical Retreats 1 | . 1 . . Traps | -11 -10 -10 -9 ------- Run | Yrd Mat Min Mat Traps Triggered 1 | . 1 . . Indirectly . | . . . . Trap Hack Attempts . | . . . . Triggered . | . . . . Disarmed . | . . . . Reprogrammed . | . . . . Reused . | . . . . Traps Extracted . | . . . . Installed . | . . . . Triggered . | . . . . Machines | -11 -10 -10 -9 ---------- Run | Yrd Mat Min Mat Machines Disabled . | . . . . Max in Single Turn . | . . . . Machines Repaired . | . . . . Machines Dismantled . | . . . . Machines Sabotaged . | . . . . Overloaded Fab Kills . | . . . . Hacking | -11 -10 -10 -9 --------- Run | Yrd Mat Min Mat Machines Accessed 1 | . 1 . . Terminals . | . . . . Fabricators . | . . . . Repair Stations . | . . . . Recycling Units 1 | . 1 . . Scanalyzers . | . . . . Garrison Access . | . . . . Total Hacks 2 | . 2 . . Successful 2 | . 2 . . Failed . | . . . . Catastrophic . | . . . . Database Lockouts . | . . . . Manual . | . . . . Terminals . | . . . . Fabricators . | . . . . Repair Stations . | . . . . Recycling Units 2 | . 2 . . Scanalyzers . | . . . . Garrison Access . | . . . . Terminal Hacks . | . . . . Fabricator Hacks . | . . . . Repair Station Hacks . | . . . . Recycling Unit Hacks 2 | . 2 . . Report Inventory 1 | . 1 . . Retrieve Matter 1 | . 1 . . Scanalyzer . | . . . . Garrison Access Hacks . | . . . . Unauthorized Hacks . | . . . . Terminals . | . . . . Fabricators . | . . . . Repair Stations . | . . . . Recycling Units . | . . . . Scanalyzers . | . . . . Garrison Access . | . . . . Data Cores Recovered . | . . . . Used . | . . . . Hacking Detections . | . . . . Full Trace Events . | . . . . Feedback Events . | . . . . Feedback Blocked . | . . . . Robot Schematics Acquired . | . . . . Robots Built . | . . . . Authchips . | . . . . Time . | . . . . Total Robot Build Rating . | . . . . Part Schematics Acquired . | . . . . Parts Built . | . . . . Authchips . | . . . . Time . | . . . . Total Part Build Rating . | . . . . Parts Repaired . | . . . . Time . | . . . . Parts Recycled . | . . . . Recycled Matter . | . . . . Retrieved Matter . | . . . . Retrieved Components . | . . . . Parts Scanalyzed . | . . . . Part Schematics Acquired . | . . . . Parts Damaged . | . . . . Bothacking | -11 -10 -10 -9 ------------ Run | Yrd Mat Min Mat Used RIF Installer . | . . . . Robots Hacked . | . . . . Non-combat . | . . . . Combat . | . . . . Robot Hacks Applied . | . . . . Relay Couplers Released . | . . . . Fabnet Peak Effective % . | . . . . Robots Rewired . | . . . . Allies Hacked . | . . . . Hacks Repelled . | . . . . Allies | -11 -10 -10 -9 -------- Run | Yrd Mat Min Mat Total Allies . | . . . . Largest Group . | . . . . Highest-Rated Group . | . . . . Highest-Rated Ally . | . . . . Total Orders . | . . . . Ally Attacks . | . . . . Total Damage . | . . . . Kills . | . . . . Allies Corrupted . | . . . . Allies Melted . | . . . . Intel | -11 -10 -10 -9 ------- Run | Yrd Mat Min Mat Active Infowar (turns) . | . . . . Robot Analysis Total . | . . . . Derelict Logs Recovered 1 | . . 1 . Drone Launches . | . . . . Drone Recoveries . | . . . . Exploration | -11 -10 -10 -9 ------------- Run | Yrd Mat Min Mat Turns Passed 858 | 65 471 195 127 Spaces Moved 541 | 50 303 127 61 Core 17 | 6 . . 11 Treads 78 | . 69 9 . Legs 446 | 44 234 118 50 Wheels . | . . . . Hover . | . . . . Flight . | . . . . Fastest Speed 50 | 50 120 120 50 Average Speed 127 | 116 133 122 118 Slowest Speed 190 | 120 190 160 150 Overloaded Moves . | . . . . Propulsion Burnouts . | . . . . Robots Hopped . | . . . . Potential Cave-ins . | . . . . Cave-ins Triggered . | . . . . Exploration Rate (%) 22 | 4 41 36 7 Regions Visited 3 Branch Regions 1 Pre-discovered Areas . | . . . . Known Exits Taken . | . . . . Unknown Exits Taken 3 | 1 1 1 . Scrap Searched . | . . . . Spaces Dug . | . . . . Terrain Destroyed . | . . . . Melee . | . . . . Projectile . | . . . . AOE . | . . . . Terrain Rammed . | . . . . Walls Destroyed . | . . . . Machines Disabled . | . . . . Actions | -11 -10 -10 -9 --------- Run | Yrd Mat Min Mat Total 622 | 54 332 143 93 Wait 8 | . . . 8 Move 538 | 49 302 126 61 Hop . | . . . . Pick Up 9 | . 6 1 2 Fast Attach 6 | 5 . . 1 Attach 5 | . 3 . 2 Detach . | . . . . Swap 7 | . 2 2 3 Drop . | . . . . Fire 41 | . 19 14 8 Melee 8 | . . . 8 Ram . | . . . . Kick . | . . . . Crush . | . . . . Escape Stasis . | . . . . Rewire . | . . . . Trap . | . . . . Miscellaneous . | . . . . Route ------- -11/Scrapyard -10/Materials (discovered 2 exits: [*Mat] / [*Min]) -10/Mines -9/Materials History --------- Turn | Location | Event 2 | -11/Scrapyard | Met Revision 17 5 | -11/Scrapyard | Discovered new exit (range 15) 66 | -11/Scrapyard | Entered Materials 166 | -10/Materials | Discovered new exit (range 8) 317 | -10/Materials | Build established: Mutant 440 | -10/Materials | Discovered new exit (range 12) 537 | -10/Materials | Entered Mines 564 | -10/Mines | Core integrity fell below 50% 592 | -10/Mines | Core integrity fell below 20% 606 | -10/Mines | Learned Materials garrison access intel 681 | -10/Mines | Found a damaged Exp. Sensor Array with a note attached 721 | -10/Mines | Discovered new exit (range 9) 732 | -10/Mines | Entered Materials 732 | -9/Materials | Evolved 2 slots: Propulsion x1, Utility x1 838 | -9/Materials | Core integrity fell below 50% 851 | -9/Materials | Core integrity fell below 20% 859 | -9/Materials | Destroyed by Y-45 Defender with Beam Rifle Last Messages --------------- 00788_ Acquired EM Pulse Gun. 00794_ Aluminum Leg destroyed. 00794_ Critical hit (Burn: +37). 00798_ Processing Tank disabled. 00800_ Imp. Heat Sink fried. 00800_ G-47 Trooper destroyed. 00804_ Aluminum Leg destroyed. 00805_ Ion Engine destroyed. 00820_ EM Pulse Gun destroyed. 00820_ G-34 Mercenary IFF system glitched. 00824_ Acquired Mace. 00826_ Aluminum Leg destroyed. 00834_ G-34 Mercenary knocked back. 00845_ K-01 Serf collects debris. 00845_ G-34 Mercenary destroyed. 00847_ Sml. Storage Unit destroyed. 00849_ K-01 Serf collects debris. 00858_ Destroyed Heat Sink. 00858_ Y-45 Defender system corrupted by crushing effect. Map ----- +----------------------------------------------------+ | ??????????????????????????????? | | ??????????????????????????????? | | ??????????????????????????????? | | ??????????????????????????????? | | ??????????????????????????????? | | ??????????????????????????????? | | ??????????????????????????????? | | ??????????????????????????????? | | ??????????????????????????????? | | ??????????????????????????????? | | ??????????????????????????????? | | ??????????????????????????????? | | ??????????????????????????????? | | ????????????? ???????????????? | | ????????????# #######+##?????? | | ????????????# #?????? | | ????????????# #?????? | | ????????????# "T" ??????? | | ????????????# ???###? | | ????????????# ##### ## | | ????????????# # !!/# | | ????????????# # !!/# | | ????""T?????# # !! # | | ?????"""????# + # | | ?????? ???# #"T"## ##[ # | | ########+#### ######+##Y@k # | | # ##== [!# | | # ## g"""%# | | ???? # """ ## """=# | | ???????????# + """ ## "" # | | ???????????# # """ ## """ # | | ???????????# # ##= """ # | | ???????????# ######### # | | ???????????# # ######### | | ???????????# # #???????? | | ???????????# # #???????? | | ???????????# + #???????? | | ???????????# # #???????? | | ???????????# # #???????? | | ???????????# ########???????? | | ???????????# #??????????? | | ???????????# #??????????? | | ???????????# #??????????? | | ???????????#########??????????? | | ??????????????????????????????? | | ??????????????????????????????? | | ??????????????????????????????? | | ??????????????????????????????? | | ??????????????????????????????? | | ??????????????????????????????? | +----------------------------------------------------+ Best States ------------- Heat Dissipation 28 Energy Generation 10 Energy Capacity 250 Matter Stores 284 Matter Capacity 300 Sight Range 16 Terrain Scan Density 10 Evasion (%) 55 Targeting Accuracy 5 Recoil Reduction 2 Item Schematics ----------------- None Robot Schematics ------------------ None Fabricated ------------ Nothing Repaired ---------- Nothing Alien Tech Used ----------------- None Achievements -------------- None Challenges ------------ None Game ------ Seed StealthLobotomyParser Manual? 0 Play Time 00:12:49 Cumulative 16.9 hours Start 2025.09.07 @ 21:49:11 End 2025.09.07 @ 22:00:10 Sessions 1 Manual Loads 0 Difficulty Rogue Special Mode None Game No. 54 Rogue 54 Adventurer 0 Explorer 0 Win Type - Total 0 Types 0/0/0/0/0/0/0/0/0/0 Lore% 4 Gallery% 15 Achievement% 13 Wizard Run 0 Options --------- Layout 1 ASCII 0 Keyboard 0 Movement Mouse Keybinds 0 Fullscreen 1 Font 24/Smallcaps Map View 50x35 Zoom Use 0% Tactical HUD 1 Map Filters NONE Filters NONE Steam 1 RUN: bdf4f0c9-62c5-4b8a-b442-6be3d8bad3f3